bitfinex/quotes_ETHUSD_20220111
["timestamp","ask_amount","ask_price","bid_price","bid_amount"]
[1641907179829,0.01265014,3128.1,3127.8,2.65021913]
[1641907180035,0.01265014,3128.1,3127.8,0.5571962]
[1641907180331,0.01265014,3128.1,3126.9,8.08872124]
[1641907180936,8.19567,3128.0,3126.9,8.04872124]
[1641907181142,0.7996617,3127.5,3127.3,0.00341054]
[1641907181535,0.6,3127.4,3127.3,0.00341054]
[1641907181933,0.3,3127.4,3127.3,0.00341054]
[1641907182137,8.61366,3127.4,3127.3,1.054e-05]
[1641907182334,1.59967,3127.0,3125.7,0.01292477]
[1641907182534,0.7998337,3126.8,3126.6,0.00397896]
[1641907182735,0.7998337,3126.8,3124.5,6.61890527]
[1641907182981,3.63647838,3126.7,3124.9,3.95]
[1641907183181,0.75967746,3126.2,3124.9,3.96364216]
[1641907183580,1.35967746,3126.2,3124.9,3.96364216]
[1641907183780,0.01275457,3125.8,3124.9,3.96364216]
[1641907184182,0.01275457,3125.8,3125.0,1.47470154]
[1641907184381,0.3,3126.1,3125.0,1.47470154]
[1641907184581,0.6,3126.3,3125.1,0.00852636]
[1641907184984,1.60219997,3126.7,3125.1,0.00852636]
[1641907185184,1.90219997,3126.7,3125.1,0.00852636]
[1641907185382,2.20219997,3126.7,3125.5,1.52506382]
[1641907185585,3.00202997,3126.7,3126.0,1.49908113]
[1641907185784,1.61377954,3126.8,3126.0,1.49908113]
[1641907185785,0.00113684,3126.8,3126.0,1.49908113]
[1641907185985,0.00113684,3126.8,3126.1,0.00284212]
[1641907186585,0.00113684,3126.8,3126.2,2.43831302]
[1641907187026,0.00113684,3126.8,3126.3,0.00170527]
[1641907187928,1.00113684,3126.8,3126.3,1.62731051]
[1641907188328,1.00113684,3126.8,3126.4,0.00113685]
[1641907189734,2.60095064,3126.8,3126.4,0.00113685]
[1641907190578,2.60095064,3126.8,3126.3,0.00170527]
[1641907190777,0.79987,3126.6,3126.3,0.00170527]
[1641907190980,0.3,3126.5,3126.3,0.00170527]
[1641907191581,0.00113684,3126.8,3126.7,5.11229427]
[1641907191778,0.00113684,3126.8,3126.7,4.52802435]
[1641907191978,0.00113684,3126.8,3126.7,4.39623735]
[1641907192179,7.503,3126.9,3126.8,4.4]
[1641907192180,2.16403684,3126.9,3126.8,4.4]
[1641907192378,2.16403684,3126.9,3126.8,7.47060219]
[1641907192681,7.504,3127.1,3126.9,2.8]
[1641907192878,7.504,3127.1,3127.0,2.6149938]
[1641907193078,0.00113685,3127.0,3126.9,3.94490625]
[1641907193280,0.00113685,3127.0,3126.9,6.52985283]
[1641907194326,0.00113685,3127.0,3126.9,9.77298429]
[1641907195027,0.00113685,3127.0,3126.9,6.66195802]
[1641907195628,0.00113685,3127.0,3126.9,2.58494658]
[1641907195826,0.00113685,3127.0,3126.9,5.83433881]
[1641907196228,0.83492031,3128.3,3127.9,1.21458036]
[1641907196429,1.3085353,3128.8,3128.0,2.70959382]
[1641907196630,1.0,3128.8,3128.0,2.70959382]
[1641907196827,0.83469159,3129.1,3128.4,1.21781265]
[1641907197027,0.83469159,3129.1,3128.4,1.90731265]
[1641907197226,0.48735077,3129.2,3128.4,1.90731265]
[1641907197227,0.01023162,3128.8,3128.4,1.90731265]
[1641907197628,0.0096632,3128.7,3128.4,1.90731265]
[1641907198076,0.00909478,3128.6,3128.4,1.90731265]
[1641907198273,0.00909478,3128.6,3128.4,0.6895]
[1641907198476,0.00852635,3128.5,3128.2,1.62437078]
[1641907198973,0.00795793,3128.4,3128.2,1.62437078]
[1641907199172,0.00795793,3128.4,3128.0,2.43655617]
[1641907199173,0.00795793,3128.4,3128.1,1.62437078]
[1641907199372,0.0073895,3128.3,3128.1,4.04695432]
[1641907199774,1.09925,3128.8,3128.2,2.42366469]
[1641907199977,2.09925,3128.8,3128.1,1.62437078]
[1641907200174,0.3096632,3128.7,3128.2,2.42321146]
[1641907200381,0.3096632,3128.7,3128.2,2.45237326]
[1641907200576,0.00909478,3128.6,3128.2,4.07674404]
[1641907200774,0.00909478,3128.6,3128.5,3.83582522]
[1641907200976,0.3,3129.2,3128.5,3.83582522]
[1641907201179,1.0,3129.4,3128.5,7.42255228]
[1641907201374,4.11739997,3129.9,3128.5,7.42255228]
[1641907201375,0.01193689,3129.1,3128.5,7.42255228]
[1641907201824,0.01136847,3129.0,3128.5,7.42255228]
[1641907202026,0.01136847,3129.0,3128.9,4.86830003]
[1641907202224,0.13819997,3129.9,3129.2,1.14359423]
[1641907202225,0.79897,3129.8,3129.2,1.14359423]
[1641907202426,0.79897,3129.8,3128.9,3.95]
[1641907202625,0.81488586,3129.8,3128.9,3.95]
[1641907202828,0.01591586,3129.8,3128.9,3.95]
[1641907203328,0.01591586,3129.8,3128.7,1.62437078]
[1641907203526,1.09907,3129.7,3128.8,1.15815971]
[1641907203726,0.79908,3129.6,3128.8,1.15815971]
[1641907203929,0.01477901,3129.6,3128.8,1.15815971]
[1641907204129,0.01421059,3129.5,3128.8,1.15815971]
[1641907204529,0.01364216,3129.4,3128.8,1.15815971]
[1641907204929,0.13819997,3129.9,3128.8,2.78253049]
[1641907204930,0.01307374,3129.3,3128.8,2.78253049]
[1641907205130,0.01307374,3129.3,3128.8,1.62437078]
[1641907205333,0.01250532,3129.2,3128.8,1.62437078]
[1641907205781,0.01193689,3129.1,3128.8,1.62437078]
[1641907205980,0.01193689,3129.1,3127.9,7.80869826]
[1641907205981,0.01193689,3129.1,3128.7,1.62437078]
[1641907206177,0.01136847,3129.0,3128.7,2.76718993]
[1641907206582,0.01080005,3128.9,3128.7,1.14281915]
[1641907206979,0.01023162,3128.8,3128.7,1.14281915]
[1641907207978,0.01023162,3128.8,3128.7,4.09281915]
[1641907208188,0.01023162,3128.8,3128.7,5.71718993]
[1641907208383,0.01023162,3128.8,3128.7,8.76128413]
[1641907208582,0.01023162,3128.8,3128.7,27.92528413]
[1641907208980,0.01023162,3128.8,3128.7,26.30091335]
[1641907209228,3.7085,3130.3,3130.0,1.29973377]
[1641907209425,0.01242352,3130.4,3128.9,11.90644417]
[1641907209627,0.00795793,3130.2,3128.9,7.94894417]
[1641907209824,0.00795793,3130.2,3129.0,18.7]
[1641907210026,0.00738951,3130.1,3129.1,2.68258852]
[1641907210327,0.31242352,3130.4,3129.1,2.68258852]
[1641907210328,0.00682108,3130.0,3129.1,2.68258852]
[1641907210525,0.00682108,3130.0,3129.3,1.22513523]
[1641907210729,0.00625266,3129.9,3129.1,4.07701144]
[1641907210926,0.79894,3130.2,3129.1,4.07701144]
[1641907210927,0.3,3130.1,3129.1,4.07701144]
[1641907211125,0.3,3130.1,3129.2,0.00397896]
[1641907211328,1.10009685,3130.1,3129.2,2.43064031]
[1641907211627,1.10009685,3130.1,3129.3,0.00341054]
[1641907212028,1.10009685,3130.1,3129.2,0.93273821]
[1641907212228,1.10009685,3130.1,3129.2,2.45561834]
[1641907212428,1.89903685,3130.1,3129.3,0.00341054]
[1641907212628,2.89903685,3130.1,3129.3,0.00341054]
[1641907212982,0.3,3130.0,3129.3,0.00341054]
[1641907213675,0.3,3130.0,3129.1,0.00454739]
[1641907213978,0.79908,3129.7,3129.1,0.00454739]
[1641907214175,0.464,3129.6,3129.1,0.00454739]
[1641907214378,0.764,3129.6,3129.1,2.71672128]
[1641907214878,0.83451833,3129.5,3129.2,0.00397896]
[1641907215078,0.464,3129.4,3129.2,0.00397896]
[1641907215277,0.764,3129.4,3129.2,0.00397896]
[1641907215678,1.764,3129.4,3129.1,0.00454739]
[1641907215884,0.764,3129.4,3129.1,0.00454739]
[1641907216276,0.3,3129.4,3129.3,2.71672128]
[1641907216477,0.83444837,3129.9,3129.3,3.64030302]
[1641907216478,1.59806,3129.8,3129.3,3.64030302]
[1641907216726,1.0,3129.8,3129.3,0.92699228]
[1641907216925,1.3,3129.8,3129.4,0.00284212]
[1641907217125,0.3,3129.8,3129.4,0.00284212]
[1641907217328,1.0,3130.0,3129.4,4.33914605]
[1641907217526,1.3,3130.0,3129.4,4.33914605]
[1641907217725,1.6,3130.0,3129.5,0.00227369]
[1641907218129,1.6,3130.0,3129.5,1.62185634]
[1641907218431,1.6,3130.0,3129.6,0.00170527]
[1641907218828,2.8631415,3130.0,3129.6,0.00170527]
[1641907219028,2.8631415,3130.0,3129.5,0.00227369]
[1641907219029,0.79907,3129.8,3129.5,0.00227369]
[1641907219426,1.39907,3129.8,3129.5,0.00227369]
[1641907219826,1.39907,3129.8,3129.4,0.00284212]
[1641907220026,0.3,3129.6,3129.4,0.00284212]
[1641907220226,0.79905,3129.7,3129.4,0.00284212]
[1641907220501,0.3,3129.6,3129.4,0.00284212]
[1641907220691,1.09907,3129.8,3129.4,0.00284212]
[1641907220996,1.39907,3129.8,3129.4,2.7195634]
[1641907221393,1.39907,3129.8,3129.5,0.00227369]
[1641907221892,1.39907,3129.8,3129.4,0.00284212]
[1641907222092,1.39907,3129.8,3129.4,2.7195634]
[1641907222494,2.99732,3129.8,3129.5,0.00227369]
[1641907222898,1.79909,3129.7,3129.5,0.00227369]
[1641907223097,0.79911,3129.6,3129.5,0.00227369]
[1641907223503,1.39911,3129.6,3129.5,0.00227369]
[1641907224097,1.09911,3129.6,3129.3,0.00341054]
[1641907224330,1.09911,3129.6,3129.5,2.71672128]
[1641907224732,1.09911,3129.6,3129.5,2.71899497]
[1641907224929,1.09911,3129.6,3129.5,0.00227369]
[1641907225430,1.09911,3129.6,3129.2,2.72070024]
[1641907225830,1.09911,3129.6,3129.3,0.00341054]
[1641907226037,1.09911,3129.6,3129.3,2.72013182]
[1641907226330,1.09911,3129.6,3129.4,0.00284212]
[1641907227238,1.09911,3129.6,3129.3,0.00341054]
[1641907227433,1.09911,3129.6,3129.4,2.71672128]
[1641907227834,1.09911,3129.6,3129.5,0.00227369]
[1641907228278,1.09911,3129.6,3129.4,0.00284212]
[1641907228478,1.39911,3129.6,3129.4,0.00284212]
[1641907228877,1.39911,3129.6,3129.3,0.00341054]
[1641907229878,1.39911,3129.6,3129.2,1.28113182]
[1641907230178,0.79912,3129.4,3128.9,1.61958265]
[1641907230480,1.09912,3129.4,3129.0,0.00170527]
[1641907230676,1.09912,3129.4,3128.9,1.55728792]
[1641907231077,0.00170527,3129.3,3128.8,5.55294782]
[1641907231282,0.00170527,3129.3,3128.9,3.76488084]
[1641907231485,0.00113685,3129.2,3128.9,6.20143701]
[1641907231928,0.799,3130.0,3128.9,6.20143701]
[1641907231929,0.00454739,3129.8,3128.9,6.20143701]
[1641907232236,0.00397896,3129.7,3129.4,1.53264047]
[1641907232628,0.00341054,3129.6,3129.4,1.53264047]
[1641907233028,0.00284212,3129.5,3129.4,1.53264047]
[1641907233629,0.00284212,3129.5,3129.1,2.43655617]
[1641907233832,0.00284212,3129.5,3129.2,2.43655617]
[1641907234027,0.79905,3129.7,3129.2,2.43655617]
[1641907234028,0.00227369,3129.4,3129.2,2.43655617]
[1641907234429,0.00170527,3129.3,3129.2,2.43655617]
[1641907234629,0.00170527,3129.3,3129.2,3.80364711]
[1641907234829,0.00170527,3129.3,3129.2,1.36709094]
[1641907238083,0.00170527,3129.3,3129.0,2.43655617]
[1641907238482,0.00113685,3129.2,3129.0,2.43655617]
[1641907238685,0.00113685,3129.2,3128.9,2.43655617]
[1641907238989,0.464,3129.2,3128.9,2.43655617]
[1641907239429,0.79923,3129.0,3128.6,3.75253871]
[1641907239827,1.09923,3129.0,3128.7,0.00170527]
[1641907240834,1.09923,3129.0,3128.8,1.62656464]
[1641907241131,1.464,3129.2,3128.8,1.62656464]
[1641907241132,1.764,3129.2,3128.8,1.62656464]
[1641907241431,1.3,3129.2,3129.1,1.47267846]
[1641907241635,0.3,3129.2,3129.1,1.47267846]
[1641907241928,0.00113685,3129.2,3129.1,1.47267846]
[1641907242986,0.00113685,3129.2,3129.0,1.62656464]
[1641907243676,0.00113685,3129.2,3129.1,1.62656464]
[1641907243878,0.30113685,3129.2,3129.1,1.62656464]
[1641907244079,0.30113685,3129.2,3129.0,1.62656464]
[1641907244282,0.30113685,3129.2,3128.9,1.62656464]
[1641907246833,0.30113685,3129.2,3129.0,1.62656464]
[1641907247333,0.30113685,3129.2,3128.9,1.62656464]
[1641907248832,0.30113685,3129.2,3128.8,1.62656464]
[1641907249233,0.30113685,3129.2,3128.9,1.62656464]
[1641907252481,0.00113685,3129.2,3128.9,1.62656464]
[1641907252982,0.00113685,3129.2,3129.0,1.62656464]
[1641907254081,0.00113685,3129.2,3128.9,1.62656464]
[1641907254535,0.00113685,3129.2,3129.1,2.71695423]
[1641907255236,0.00113685,3129.2,3128.9,4.34351887]
[1641907255636,0.00113685,3129.2,3129.1,2.71695423]
[1641907256037,0.00113685,3129.2,3128.9,1.62656464]
[1641907256436,0.80033685,3129.2,3128.9,1.62656464]
[1641907256839,0.3,3129.1,3128.9,1.62656464]
[1641907257441,0.80033685,3129.2,3128.9,1.62656464]
[1641907257639,0.3,3129.1,3129.0,1.62656464]
[1641907258294,0.3,3129.1,3128.8,4.34351887]
[1641907258892,0.3,3129.1,3129.0,2.71695423]
[1641907259293,0.3,3129.1,3128.9,4.34351887]
[1641907260094,0.3,3129.1,3128.9,1.62656464]
[1641907260492,0.27158613,3129.2,3128.9,1.62656464]
[1641907260892,0.27158613,3129.2,3129.0,1.62656464]
[1641907262538,0.27158613,3129.2,3128.8,5.1535104]
[1641907262539,0.27158613,3129.2,3128.8,6.78007504]
[1641907262732,0.03748506,3129.1,3128.8,4.34351887]
[1641907263132,0.3,3129.1,3128.9,2.71695423]
[1641907263534,1.09924,3129.1,3128.9,2.71695423]
[1641907263935,0.3,3129.1,3128.9,2.71695423]
[1641907264940,0.3,3129.1,3128.8,2.71695423]
[1641907265591,3.19471699,3129.1,3128.8,2.71695423]
[1641907265793,0.464,3129.0,3128.8,2.71695423]
[1641907265990,1.464,3129.0,3128.8,2.71695423]
[1641907266189,2.62255527,3128.9,3128.7,0.00170527]
[1641907266390,6.8,3128.8,3128.7,0.00170527]
[1641907266594,6.0,3128.7,3128.4,1.56540676]
[1641907266789,6.0,3128.7,3128.2,5.1535104]
[1641907266790,4.32527987,3128.6,3128.2,5.1535104]
[1641907266989,6.32527987,3128.6,3128.2,5.1535104]
[1641907267189,6.82998305,3128.5,3127.9,3.24874156]
[1641907267390,3.86251606,3128.4,3127.9,3.24874156]
[1641907267589,5.54249911,3128.4,3128.0,0.00170527]
[1641907267798,5.54249911,3128.4,3127.9,3.24874156]
[1641907267799,8.34933,3128.2,3127.9,3.24874156]
[1641907267992,3.79592107,3128.1,3127.1,3.24874156]
[1641907268291,3.79592107,3128.1,3127.2,0.00454738]
[1641907268292,4.79592107,3128.1,3127.2,0.00454738]
[1641907269095,0.79964,3128.0,3127.2,0.00454738]
[1641907269326,0.464,3127.9,3127.2,0.00454738]
[1641907269527,0.79962,3127.7,3127.2,0.00454738]
[1641907269728,0.3,3127.6,3127.2,0.00454738]
[1641907270628,0.63497747,3127.6,3127.2,0.00454738]
[1641907271028,0.33497747,3127.6,3127.5,1.38531677]
[1641907271429,0.33497747,3127.6,3127.5,1.38815888]
[1641907275284,0.33497747,3127.6,3127.5,3.83412293]
[1641907276732,0.33497747,3127.6,3127.5,2.44880616]
[1641907278532,0.33497747,3127.6,3127.5,0.00284211]
[1641907281900,0.33497747,3127.6,3127.5,1.63364493]
[1641907282102,1.33497747,3127.6,3127.5,1.63364493]
[1641907282605,0.33497747,3127.6,3127.5,1.63364493]
[1641907283101,0.33497747,3127.6,3127.5,0.00284211]
[1641907283702,0.33497747,3127.6,3127.5,1.63364493]
[1641907285337,0.33497747,3127.6,3127.5,0.00284211]
[1641907286041,0.33497747,3127.6,3127.5,5.04880616]
[1641907286541,0.33497747,3127.6,3127.5,2.44880616]
[1641907286936,0.33497747,3127.6,3127.5,0.00284211]
[1641907287998,0.33497747,3127.6,3127.5,2.72046386]
[1641907289192,0.83488828,3128.2,3127.5,0.00284211]
[1641907289591,0.83488828,3128.2,3127.5,2.71989544]
[1641907289592,1.63436828,3128.2,3127.5,2.71989544]
[1641907289992,1.63436828,3128.2,3127.6,0.00227369]
[1641907290791,2.93436828,3128.2,3127.5,0.00284211]
[1641907290994,1.93436828,3128.2,3127.5,0.00284211]
[1641907291196,1.0,3128.1,3127.5,0.00284211]
[1641907291591,2.93436828,3128.2,3127.5,0.00284211]
[1641907291836,0.79954,3128.0,3127.5,0.00284211]
[1641907292039,1.09954,3128.0,3127.5,0.00284211]
[1641907292936,0.79954,3128.0,3127.5,0.00284211]
[1641907293936,0.27076165,3127.7,3127.5,0.00284211]
[1641907295988,1.07035165,3127.7,3127.5,0.00284211]
[1641907296187,7.214,3127.6,3127.5,0.00284211]
[1641907296588,8.214,3127.6,3127.5,0.00284211]
[1641907296793,6.75,3127.5,3127.4,2.23781477]
[1641907296987,8.514,3127.5,3126.4,3.8266]
[1641907297188,0.79979,3127.0,3126.4,3.8266]
[1641907297389,2.20709,3127.0,3126.5,0.00568424]
[1641907297591,3.20709,3127.0,3126.5,2.62110118]
[1641907297790,3.20709,3127.0,3126.5,1.46199506]
[1641907297988,2.20709,3127.0,3126.6,0.00511581]
[1641907298387,3.20709,3127.0,3126.6,0.00511581]
[1641907299232,0.04354302,3126.9,3126.6,0.00511581]
[1641907299433,3.20709,3127.0,3126.2,0.00738951]
[1641907299434,2.26379,3127.0,3126.2,0.00738951]
[1641907299633,1.26379,3127.0,3126.1,2.55880645]
[1641907299833,1.26379,3127.0,3125.9,6.69052245]
[1641907300035,0.00397897,3126.9,3126.1,1.43006545]
[1641907300237,0.00397897,3126.9,3126.6,2.41878368]
[1641907300435,1.26379,3127.0,3126.6,2.41878368]
[1641907300436,0.00341054,3126.8,3126.6,2.41878368]
[1641907300636,0.79986,3126.7,3126.6,2.41878368]
[1641907300938,0.80270212,3126.7,3126.6,2.41878368]
[1641907301137,0.80189892,3126.7,3126.6,2.41878368]
[1641907302039,0.80189892,3126.7,3126.5,2.41878368]
[1641907302435,0.0022737,3126.6,3126.5,2.41878368]
[1641907303082,0.0022737,3126.6,3126.4,2.41878368]
[1641907303382,0.7990568,3126.7,3126.4,2.41878368]
[1641907303383,0.00170527,3126.5,3126.4,2.41878368]
[1641907303777,0.0022737,3126.5,3126.4,2.41878368]
[1641907304380,0.4662737,3126.5,3126.4,2.41878368]
[1641907304582,1.0662737,3126.5,3126.2,2.41878368]
[1641907304781,0.80002,3126.4,3126.2,2.41878368]
[1641907304981,0.764,3126.3,3126.2,2.41878368]
[1641907305382,1.064,3126.3,3126.2,2.41878368]
[1641907305782,1.064,3126.3,3126.0,0.00113684]
[1641907306183,1.064,3126.3,3125.7,0.00284212]
[1641907306184,1.60019,3126.2,3125.7,0.00284212]
[1641907306385,1.60019,3126.2,3125.2,2.41878368]
[1641907306386,0.464,3126.1,3125.6,0.00341054]
[1641907306584,0.464,3126.1,3125.3,0.00511581]
[1641907306585,0.764,3126.1,3125.3,0.00511581]
[1641907306849,1.64459541,3126.1,3125.3,0.00511581]
[1641907307044,2.64459541,3126.1,3125.3,0.00511581]
[1641907307647,0.80013,3125.9,3125.3,0.00511581]
[1641907307848,1.60062,3125.6,3125.2,0.00568423]
[1641907308046,1.60062,3125.6,3125.1,2.41878368]
[1641907308047,4.1,3125.4,3125.1,2.41878368]
[1641907308248,1.464,3125.5,3125.0,0.5533336]
[1641907308249,1.0,3125.2,3125.0,2.97211728]
[1641907308447,0.464,3125.1,3125.0,2.97211728]
[1641907308647,0.464,3125.1,3125.0,4.18445557]
[1641907308949,0.00113684,3125.4,3125.0,2.90925413]
[1641907309247,0.00113684,3125.4,3125.2,3.0]
[1641907309452,0.00113684,3125.4,3125.0,0.49047045]
[1641907309850,0.31972491,3125.1,3125.0,2.02807505]
[1641907310497,0.31972491,3125.1,3125.0,0.49047045]
[1641907316956,0.31972491,3125.1,3125.0,3.20968554]
[1641907320782,0.00113684,3125.4,3125.0,5.60169703]
[1641907321383,0.00113684,3125.4,3125.0,5.90169703]
[1641907321586,0.00113684,3125.4,3125.1,2.71921509]
[1641907321832,0.00113684,3125.4,3125.2,3.31766408]
[1641907322032,0.00113684,3125.4,3125.3,8.11879418]
[1641907322232,0.00113684,3125.4,3125.3,11.06425658]
[1641907323033,3.684e-05,3125.4,3125.3,11.06425658]
[1641907323238,0.83529052,3126.9,3125.4,6.75]
[1641907323436,0.27076165,3127.7,3125.8,0.79964]
[1641907323437,2.54384451,3127.7,3125.8,0.79964]
[1641907323736,0.00682109,3126.6,3126.1,0.01238369]
[1641907323936,0.00682109,3126.6,3126.1,3.35610063]
[1641907324134,0.00625266,3126.5,3126.2,1.18678047]
[1641907324434,0.00568424,3126.4,3126.2,2.1255599]
[1641907324634,0.00568424,3126.4,3126.2,4.84477499]
[1641907324835,0.83512772,3127.5,3126.8,1.34993195]
[1641907325040,0.83512772,3127.5,3126.5,0.7995775]
[1641907325236,0.00625265,3127.4,3126.3,8.66499694]
[1641907325490,0.00625265,3127.4,3126.7,0.93753754]
[1641907325686,0.00568423,3127.3,3126.7,0.93753754]
[1641907326085,0.00511581,3127.2,3126.8,1.53238916]
[1641907326585,0.00454738,3127.1,3126.8,4.25160425]
[1641907326784,0.00454738,3127.1,3126.8,2.71921509]
[1641907326986,0.00397896,3127.0,3126.4,2.71921509]
[1641907327385,0.00341054,3126.9,3126.4,2.71921509]
[1641907327785,0.00284211,3126.8,3126.7,1.48569038]
[1641907328186,0.00284211,3126.8,3126.6,0.79106752]
[1641907328685,0.00227369,3126.7,3126.6,0.79106752]
[1641907329731,0.00227369,3126.7,3126.4,1.52669065]
[1641907330136,0.00170527,3126.6,3126.2,2.7059506]
[1641907330332,0.00170527,3126.6,3126.0,1.2098]
[1641907330532,0.00113684,3126.5,3126.0,1.2098]
[1641907330732,0.00113684,3126.5,3126.1,0.00113685]
[1641907330930,1.00568423,3127.3,3126.1,0.00113685]
[1641907331229,0.00511581,3127.2,3126.1,1.96195625]
[1641907331430,0.79985,3126.7,3126.1,1.15089654]
[1641907331632,0.79985,3126.7,3126.1,0.00113685]
[1641907331830,0.03837674,3126.5,3126.1,0.00113685]
[1641907332031,0.00170527,3126.6,3126.0,0.00170527]
[1641907332329,0.00170527,3126.6,3125.7,4.07701144]
[1641907332330,0.00113684,3126.5,3125.8,0.00284212]
[1641907332735,0.00170527,3126.6,3126.4,2.41420226]
[1641907333180,0.00113684,3126.5,3126.4,2.41420226]
[1641907334485,2.78578664,3126.5,3126.4,2.41420226]
[1641907334685,3.24978664,3126.5,3126.4,2.41420226]
[1641907334888,4.24978664,3126.5,3126.3,2.41420226]
[1641907335084,7.4738543,3126.4,3126.3,2.41420226]
[1641907335288,4.1878543,3126.4,3126.3,2.41420226]
[1641907335585,4.9878043,3126.4,3126.3,2.41420226]
[1641907335785,4.9878043,3126.4,3126.2,1.63136956]
[1641907335786,2.26395,3126.4,3126.2,1.63136956]
[1641907336188,1.26395,3126.4,3126.2,1.63136956]
[1641907336737,1.26395,3126.4,3126.2,2.41420226]
[1641907336937,1.56395,3126.4,3126.2,2.41420226]
[1641907337339,1.56395,3126.4,3126.1,2.41420226]
[1641907337948,1.26395,3126.4,3126.3,1.63132067]
[1641907338540,1.56395,3126.4,3126.2,1.63132067]
[1641907339342,1.56395,3126.4,3126.3,1.63132067]
[1641907339741,1.56395,3126.4,3126.1,2.41420226]
[1641907340492,1.56395,3126.4,3126.3,1.6313635]
[1641907340680,4.22258742,3126.4,3126.3,1.6313635]
[1641907341081,5.22258742,3126.4,3126.2,1.6313635]
[1641907341379,1.0,3126.3,3126.2,1.6313635]
[1641907341781,0.8,3126.2,3125.9,0.1913635]
[1641907342082,0.8,3126.2,3126.0,0.00170527]
[1641907342781,3.4301709,3126.2,3125.9,0.12906877]
[1641907343184,1.83475275,3126.1,3125.9,0.12906877]
[1641907343382,2.66460369,3126.0,3125.9,0.12906877]
[1641907343684,1.464,3126.0,3125.9,0.12906877]
[1641907344341,1.464,3126.0,3125.9,2.71911016]
[1641907344942,0.464,3126.0,3125.9,2.71911016]
[1641907345143,1.464,3126.0,3125.5,2.41420226]
[1641907345343,0.464,3126.0,3125.5,2.41420226]
[1641907345545,2.2641,3126.0,3125.6,0.0022737]
[1641907345742,1.2641,3126.0,3125.6,0.0022737]
[1641907345943,2.2641,3126.0,3125.6,0.0022737]
[1641907347549,1.2641,3126.0,3125.6,0.0022737]
[1641907347749,2.2641,3126.0,3125.6,0.0022737]
[1641907348185,2.2641,3126.0,3125.5,0.00284212]
[1641907348382,1.2641,3126.0,3125.5,0.00284212]
[1641907348581,2.2641,3126.0,3125.5,0.00284212]
[1641907348781,1.2641,3126.0,3125.5,0.00284212]
[1641907349184,1.2641,3126.0,3125.5,2.41704438]
[1641907349982,0.464,3126.0,3125.5,0.00284212]
[1641907350183,0.364,3126.0,3125.5,0.00284212]
[1641907350384,0.37075275,3126.1,3125.5,0.00284212]
[1641907350792,0.37075275,3126.1,3125.7,2.41420226]
[1641907351184,0.37075275,3126.1,3125.8,0.00113685]
[1641907351586,1.17076275,3126.1,3125.8,0.00113685]
[1641907352035,1.17076275,3126.1,3126.0,1.63138197]
[1641907352836,1.47076275,3126.1,3126.0,1.63138197]
[1641907353036,1.77076275,3126.1,3126.0,1.63138197]
[1641907353440,1.77076275,3126.1,3125.8,1.63251882]
[1641907354036,1.63476275,3126.1,3126.0,2.71911016]
[1641907354637,1.63476275,3126.1,3125.9,1.63138197]
[1641907355040,1.63476275,3126.1,3126.0,1.63138197]
[1641907355239,1.63476275,3126.1,3126.0,4.35049213]
[1641907355686,1.93476275,3126.1,3126.0,4.35049213]
[1641907355885,2.23476275,3126.1,3125.9,1.63138197]
[1641907357085,2.23476275,3126.1,3125.8,1.63251882]
[1641907357286,1.93476275,3126.1,3125.8,1.63251882]
[1641907357485,1.63476275,3126.1,3125.8,0.19251882]
[1641907357687,0.00113684,3126.0,3125.9,2.71911016]
[1641907358086,0.00113684,3126.0,3125.7,2.41420226]
[1641907358789,0.00113684,3126.0,3125.6,2.41420226]
[1641907360465,0.00113684,3126.0,3125.5,2.41420226]
[1641907360866,0.00113684,3126.0,3125.6,0.00113685]
[1641907361066,0.00113684,3126.0,3125.7,2.71911016]
[1641907361572,0.00113684,3126.0,3125.6,2.41533911]
[1641907361768,0.00113684,3126.0,3125.7,2.41420226]
[1641907362366,0.00113684,3126.0,3125.7,2.71911016]
[1641907363184,0.00113684,3126.0,3125.7,2.41420226]
[1641907363686,0.00113684,3126.0,3125.6,2.41533911]
[1641907366585,0.00113684,3126.0,3125.9,1.63144545]
[1641907367634,0.00113684,3126.0,3125.8,1.63144545]
[1641907368235,0.00113684,3126.0,3125.9,1.63144545]
[1641907369638,0.46513684,3126.0,3125.9,1.63144545]
[1641907370038,1.0,3125.8,3125.7,2.71911016]
[1641907370238,1.80019,3125.8,3125.7,2.71911016]
[1641907370687,2.10019,3125.8,3125.6,1.6325823]
[1641907370884,3.10019,3125.8,3125.6,1.5325823]
[1641907371485,3.10019,3125.8,3125.7,2.71911016]
[1641907371686,2.10019,3125.8,3125.7,2.71911016]
[1641907371888,2.10132684,3125.8,3125.7,2.71911016]
[1641907372090,1.80132684,3125.8,3125.7,2.71911016]
[1641907372287,1.80132684,3125.8,3125.6,1.5325823]
[1641907372484,1.10132684,3125.8,3125.6,1.5325823]
[1641907372886,2.10132684,3125.8,3125.7,2.71911016]
[1641907373487,2.10132684,3125.8,3125.6,1.5325823]
[1641907374088,2.10132684,3125.8,3125.7,2.71911016]
[1641907374341,1.80132684,3125.8,3125.7,2.71911016]
[1641907374935,1.80132684,3125.8,3125.5,2.41420226]
[1641907375533,0.80132684,3125.8,3125.5,2.41420226]
[1641907375734,1.80132684,3125.8,3125.5,2.41420226]
[1641907376234,1.80132684,3125.8,3125.5,0.97320226]
[1641907376435,0.80132684,3125.8,3125.5,0.97320226]
[1641907376635,1.80132684,3125.8,3125.3,3.24874156]
[1641907376836,1.10132684,3125.8,3125.6,2.71911016]
[1641907377037,2.10132684,3125.8,3125.6,2.71911016]
[1641907377240,2.10132684,3125.8,3125.6,2.65511016]
[1641907377436,2.10132684,3125.8,3125.4,2.65624701]
[1641907378288,2.10132684,3125.8,3125.4,0.00113685]
[1641907378686,2.10132684,3125.8,3125.3,0.00170527]
[1641907379287,1.80132684,3125.8,3125.3,0.00170527]
[1641907379688,0.80132684,3125.8,3125.3,0.00170527]
[1641907379891,1.80132684,3125.8,3125.3,0.00170527]
[1641907380088,1.80132684,3125.8,3125.7,1.62907682]
[1641907380487,0.80132684,3125.8,3125.7,1.62907682]
[1641907380689,1.80132684,3125.8,3125.7,1.62907682]
[1641907380992,2.10132684,3125.8,3125.7,1.62907682]
[1641907381834,2.57622085,3125.8,3125.6,1.62907682]
[1641907382837,7.214,3125.7,3125.6,1.62907682]
[1641907383046,7.214,3125.7,3125.3,0.00170527]
[1641907383047,6.75,3125.6,3125.3,0.00170527]
[1641907383239,1.26437,3125.5,3125.3,0.00170527]
[1641907383437,1.26437,3125.5,3125.2,0.00227369]
[1641907383438,2.26437,3125.5,3125.2,0.00227369]
[1641907384053,6.75,3125.4,3125.0,0.4893336]
[1641907384243,2.86532,3125.3,3125.0,0.4893336]
[1641907384437,4.16532,3125.3,3125.0,0.4893336]